bitfinex-derivatives/quotes_BTCF0:USTF0_20210705
["timestamp","ask_amount","ask_price","bid_price","bid_amount"]
[1625524332945,0.29957544,34081.0,34080.0,0.24998542]
[1625524333044,0.35857544,34081.0,34080.0,0.24998542]
[1625524333143,5.21183586,34081.0,34080.0,0.08332847]
[1625524333645,5.21183586,34081.0,34079.0,0.25008821]
[1625524333951,4.85336282,34080.0,34079.0,0.25008821]
[1625524334046,4.91236282,34080.0,34079.0,0.25008821]
[1625524334446,4.91236282,34080.0,34079.0,0.08337739]
[1625524334846,5.15293826,34080.0,34079.0,0.08337739]
[1625524334947,5.15293826,34080.0,34078.0,0.25018182]
[1625524335502,3.46475774,34079.0,34078.0,0.25018182]
[1625524335597,3.52375774,34079.0,34078.0,0.25018182]
[1625524335897,3.58275774,34079.0,34078.0,0.25018182]
[1625524336098,3.58275774,34079.0,34078.0,0.08350432]
[1625524336900,3.58275774,34079.0,34077.0,0.25073875]
[1625524337254,3.52375774,34079.0,34077.0,0.25073875]
[1625524337352,3.46286924,34078.0,34077.0,0.25073875]
[1625524337452,3.52186924,34078.0,34077.0,0.25073875]
[1625524337703,3.46286924,34078.0,34077.0,0.25073875]
[1625524337902,3.52186924,34078.0,34077.0,0.25073875]
[1625524338103,2.30993425,34078.0,34077.0,0.08372795]
[1625524338402,2.36893425,34078.0,34077.0,0.08372795]
[1625524338503,2.30993425,34078.0,34077.0,0.25105459]
[1625524338804,2.30993425,34078.0,34077.0,0.08372795]
[1625524338904,2.55050969,34078.0,34077.0,0.08372795]
[1625524339103,3.76194452,34078.0,34076.0,0.0837123]
[1625524339405,3.82094452,34078.0,34076.0,0.0837123]
[1625524339506,2.25000689,34077.0,34076.0,0.0837123]
[1625524339604,2.59775689,34077.0,34076.0,0.0837123]
[1625524339857,2.59775689,34077.0,34075.0,0.08371227]
[1625524340208,2.24915518,34076.0,34075.0,0.251128]
[1625524340407,2.36715518,34076.0,34075.0,0.251128]
[1625524340560,2.30815518,34076.0,34075.0,0.251128]
[1625524340859,2.54873062,34076.0,34075.0,0.251128]
[1625524341059,2.60773062,34076.0,34075.0,0.251128]
[1625524341409,2.54873062,34076.0,34075.0,0.251128]
[1625524342161,1.51072552,34076.0,34075.0,0.251128]
[1625524342361,1.56972552,34076.0,34075.0,0.251128]
[1625524343166,1.51072552,34076.0,34075.0,0.251128]
[1625524345318,1.56972552,34076.0,34075.0,0.251128]
[1625524345820,1.56972552,34076.0,34075.0,0.08371227]
[1625524346323,1.56972552,34076.0,34074.0,0.08388749]
[1625524346324,2.6069049,34076.0,34074.0,0.08388749]
[1625524346873,1.21007714,34075.0,34073.0,1.16695553]
[1625524346972,0.24057544,34074.0,34073.0,1.16695553]
[1625524347072,0.35857544,34074.0,34073.0,1.16695553]
[1625524347426,0.53156811,34074.0,34073.0,1.16695553]
[1625524348179,0.61813431,34074.0,34073.0,1.16695553]
[1625524349481,1.56844031,34074.0,34073.0,0.9153]
[1625524349580,1.56844031,34074.0,34072.0,0.08394076]
[1625524349832,1.56844031,34074.0,34071.0,0.16788152]
[1625524349833,0.51850141,34073.0,34071.0,0.25183067]
[1625524350033,0.63650141,34073.0,34071.0,0.25183067]
[1625524350231,0.25944735,34072.0,34071.0,0.08394915]
[1625524350331,0.31844735,34072.0,34071.0,0.08394915]
[1625524350430,0.37744735,34072.0,34071.0,0.08394915]
[1625524350684,0.29090732,34072.0,34070.0,0.25180391]
[1625524350930,0.48115088,34071.0,34070.0,0.25180391]
[1625524351134,0.59915088,34071.0,34070.0,0.25180391]
[1625524351232,0.68569143,34071.0,34070.0,0.25180391]
[1625524351735,0.68569143,34071.0,34070.0,0.58758193]
[1625524352188,0.85854631,34071.0,34070.0,0.33577802]
[1625524352289,0.79954631,34071.0,34069.0,4.32314573]
[1625524352690,0.79954631,34071.0,34069.0,4.38014573]
[1625524353142,0.54015088,34071.0,34070.0,0.50425674]
[1625524353842,0.54015088,34071.0,34070.0,0.84046704]
[1625524354293,0.54015088,34071.0,34070.0,0.58842736]
[1625524354646,0.54015088,34071.0,34070.0,0.2522562]
[1625524355395,0.54015088,34071.0,34070.0,0.0840854]
[1625524356549,0.54015088,34071.0,34069.0,0.58869297]
[1625524357903,0.62663634,34071.0,34069.0,0.58869297]
[1625524358254,0.54015088,34071.0,34069.0,0.25230687]
[1625524359705,0.54015088,34071.0,34069.0,0.084098]
[1625524359906,0.59915088,34071.0,34069.0,0.084098]
[1625524360107,0.59915088,34071.0,34069.0,0.25171709]
[1625524360210,0.54015088,34071.0,34069.0,0.25171709]
[1625524360309,0.54015088,34071.0,34069.0,0.30871709]
[1625524360508,0.48115088,34071.0,34069.0,0.36771709]
[1625524360607,0.48115088,34071.0,34070.0,0.21443776]
[1625524360708,0.48115088,34071.0,34070.0,0.27343776]
[1625524360910,0.48115088,34071.0,34070.0,0.21443776]
[1625524361109,0.48115088,34071.0,34070.0,1.44607838]
[1625524361309,0.48115088,34071.0,34070.0,1.50507838]
[1625524361810,0.48115088,34071.0,34070.0,2.50990102]
[1625524362011,0.48115088,34071.0,34070.0,2.45090102]
[1625524362210,0.48115088,34071.0,34070.0,3.62331591]
[1625524362312,0.48115088,34071.0,34070.0,3.56431591]
[1625524363012,0.48115088,34071.0,34070.0,2.39190102]
[1625524364964,0.48115088,34071.0,34070.0,1.38707838]
[1625524365465,0.48115088,34071.0,34070.0,2.39274221]
[1625524365766,0.48115088,34071.0,34070.0,1.38707838]
[1625524365869,0.81385088,34071.0,34070.0,1.38707838]
[1625524366219,0.81385088,34071.0,34070.0,2.39278494]
[1625524367772,0.81385088,34071.0,34070.0,2.45178494]
[1625524368075,0.81385088,34071.0,34070.0,3.62499954]
[1625524368673,0.81385088,34071.0,34070.0,3.56599954]
[1625524370574,0.81385088,34071.0,34070.0,2.39278494]
[1625524372132,0.81385088,34071.0,34070.0,3.56789638]
[1625524372483,0.81385088,34071.0,34070.0,2.39278494]
[1625524372784,0.48115088,34071.0,34070.0,2.39278494]
[1625524373437,0.48115088,34071.0,34070.0,3.56790006]
[1625524375941,0.69016088,34071.0,34070.0,3.56790006]
[1625524376491,0.69016088,34071.0,34070.0,4.91480947]
[1625524378893,0.48115088,34071.0,34070.0,4.91480947]
[1625524379947,0.80829088,34071.0,34070.0,4.91480947]
[1625524382352,0.89509604,34071.0,34070.0,4.91480947]
[1625524382701,0.80829088,34071.0,34070.0,4.91480947]
[1625524383001,0.8951001,34071.0,34070.0,4.91480947]
[1625524383302,0.80829088,34071.0,34070.0,4.91480947]
[1625524384206,0.89512618,34071.0,34070.0,4.91480947]
[1625524384555,1.0686234,34071.0,34070.0,4.91480947]
[1625524384909,1.0686234,34071.0,34070.0,4.97380947]
[1625524385560,0.80829088,34071.0,34070.0,4.97380947]
[1625524386059,1.06874556,34071.0,34070.0,4.97380947]
[1625524386509,0.89516691,34071.0,34070.0,4.97380947]
[1625524386609,0.56802691,34071.0,34070.0,4.97380947]
[1625524387761,0.48115088,34071.0,34070.0,4.97380947]
[1625524388264,0.48115088,34071.0,34070.0,5.03280947]
[1625524388567,0.74170719,34071.0,34070.0,6.54239408]
[1625524388824,8.968e-05,34072.0,34070.0,6.54239408]
[1625524388916,8.968e-05,34072.0,34070.0,6.60979765]
[1625524389116,8.968e-05,34072.0,34071.0,0.01039875]
[1625524389217,0.17364341,34074.0,34071.0,0.12839875]
[1625524389317,0.17364341,34074.0,34071.0,0.18539875]
[1625524389416,0.17364341,34074.0,34071.0,0.18887543]
[1625524389517,0.17364341,34074.0,34073.0,0.48115088]
[1625524389615,0.17364341,34074.0,34073.0,0.54015088]
[1625524389717,0.17364341,34074.0,34073.0,0.59915088]
[1625524389817,0.69398638,34078.0,34073.0,6.28900399]
[1625524389916,0.69398638,34078.0,34073.0,6.34600399]
[1625524390018,0.69398638,34078.0,34073.0,6.34948051]
[1625524390119,0.69409798,34080.0,34077.0,5.68624884]
[1625524390219,0.69409798,34080.0,34077.0,5.93396884]
[1625524390316,0.69409798,34080.0,34077.0,6.10896884]
[1625524390417,1.04099593,34084.0,34079.0,5.01319096]
[1625524390516,1.04099593,34084.0,34080.0,0.057]
[1625524390618,1.04099593,34084.0,34080.0,0.116]
[1625524390716,1.04099593,34084.0,34080.0,0.175]
[1625524390817,1.04099593,34084.0,34081.0,0.00347606]
[1625524390918,1.04094252,34086.0,34083.0,3.50716692]
[1625524391017,1.04094252,34086.0,34083.0,3.62316692]
[1625524391117,1.04094252,34086.0,34083.0,3.68216692]
[1625524391322,1.04094252,34086.0,34084.0,0.00347597]
[1625524391419,1.04007196,34087.0,34085.0,2.16904379]
[1625524391519,1.04007196,34087.0,34086.0,0.72172632]
[1625524391627,1.04007196,34087.0,34086.0,0.78072632]
[1625524391720,1.04007196,34087.0,34086.0,0.83972632]
[1625524391821,1.04007196,34087.0,34086.0,3.00903996]
[1625524392321,1.04007196,34087.0,34086.0,2.95003996]
[1625524392878,1.03948739,34088.0,34086.0,1.781948]
[1625524392970,1.03948739,34088.0,34086.0,1.838948]
[1625524393271,1.03948739,34088.0,34087.0,1.00153889]
[1625524393472,1.03948739,34088.0,34087.0,1.06053889]
[1625524395085,0.118,34088.0,34087.0,1.00153889]
[1625524395278,0.059,34088.0,34087.0,1.00153889]
[1625524395529,3.87692996,34088.0,34086.0,0.77872632]
[1625524395627,4.18008996,34088.0,34086.0,0.77872632]
[1625524395829,1.03889784,34087.0,34086.0,0.77872632]
[1625524395930,1.03889784,34087.0,34086.0,0.72172632]
[1625524396230,1.09789784,34087.0,34086.0,0.72172632]
[1625524396581,2.25095088,34087.0,34086.0,0.72172632]
[1625524396783,2.30995088,34087.0,34086.0,0.72172632]
[1625524397030,2.25095088,34087.0,34086.0,0.72172632]
[1625524398887,2.25095088,34087.0,34082.0,5.17771978]
[1625524399440,1.03861745,34084.0,34082.0,5.17771978]
[1625524399540,1.27919289,34084.0,34083.0,0.48115088]
[1625524400341,0.24057544,34084.0,34083.0,0.48115088]
[1625524400942,1.27913698,34084.0,34083.0,0.48115088]
[1625524401192,0.24057544,34084.0,34083.0,0.48115088]
[1625524401442,0.29957544,34084.0,34083.0,0.48115088]
[1625524402048,1.33805956,34084.0,34083.0,0.48115088]
[1625524402250,1.39705956,34084.0,34083.0,0.48115088]
[1625524402999,4.00953781,34084.0,34083.0,0.48115088]
[1625524403351,4.00953781,34084.0,34082.0,4.1729]
[1625524403450,4.00953781,34084.0,34079.0,0.24057544]
[1625524403599,0.24057544,34080.0,34079.0,0.24057544]
[1625524403700,0.63286544,34080.0,34079.0,0.24057544]
[1625524403949,1.67149078,34080.0,34079.0,0.24057544]
[1625524404300,1.61249078,34080.0,34079.0,0.24057544]
[1625524405501,0.57386544,34080.0,34079.0,1.24860631]
[1625524405904,0.57386544,34080.0,34079.0,0.24057544]
[1625524406201,1.61237524,34080.0,34079.0,0.24057544]
[1625524406450,1.67137524,34080.0,34079.0,0.24057544]
[1625524406901,1.67137524,34080.0,34078.0,6.0468]
[1625524406902,1.4307998,34080.0,34078.0,6.0468]
[1625524407703,0.48115088,34079.0,34078.0,6.28737544]
[1625524407904,0.54015088,34079.0,34078.0,6.28737544]
[1625524408053,0.59915088,34079.0,34078.0,6.28737544]
[1625524408154,0.54015088,34079.0,34078.0,6.28737544]
[1625524408254,1.57869355,34079.0,34078.0,6.28737544]
[1625524409158,1.63769355,34079.0,34078.0,6.28737544]
[1625524409307,1.57869355,34079.0,34078.0,6.28737544]
[1625524409807,1.63769355,34079.0,34078.0,6.28737544]
[1625524410158,1.57869355,34079.0,34078.0,6.28737544]
[1625524410760,0.54015088,34079.0,34078.0,6.28737544]
[1625524410861,0.54015088,34079.0,34078.0,7.29517251]
[1625524411263,0.48115088,34079.0,34078.0,7.29517251]
[1625524411415,1.37195569,34080.0,34078.0,7.35417251]
[1625524411513,1.37195569,34080.0,34078.0,7.35217251]
[1625524411613,1.27918632,34082.0,34078.0,8.58632852]
[1625524411714,1.27918632,34082.0,34080.0,0.24057544]
[1625524411813,1.27918632,34082.0,34080.0,0.29757544]
[1625524412063,1.27918632,34082.0,34080.0,1.30432819]
[1625524413216,1.27918632,34082.0,34080.0,0.29757544]
[1625524413569,1.03873154,34081.0,34080.0,0.29757544]
[1625524413668,1.33740154,34081.0,34080.0,0.24057544]
[1625524414667,1.41249054,34081.0,34080.0,0.24057544]
[1625524414767,2.68350919,34081.0,34080.0,0.24057544]
[1625524416272,4.06881817,34081.0,34080.0,0.24057544]
[1625524420727,4.00981817,34081.0,34080.0,0.24057544]
[1625524420927,3.95081817,34081.0,34080.0,0.24057544]
[1625524421228,3.93472917,34081.0,34080.0,0.24057544]
[1625524421382,2.54942019,34081.0,34080.0,0.24057544]
[1625524421482,2.54942019,34081.0,34080.0,0.29957544]
[1625524421834,1.33740154,34081.0,34080.0,1.30686123]
[1625524422230,1.39640154,34081.0,34080.0,1.24786123]
[1625524422482,1.39640154,34081.0,34080.0,0.24057544]
[1625524422631,1.41250027,34081.0,34080.0,0.24057544]
[1625524422932,2.62520362,34081.0,34080.0,0.24057544]
[1625524423784,4.01114437,34081.0,34080.0,0.24057544]
[1625524423882,4.07014437,34081.0,34080.0,0.24057544]
[1625524427195,4.07014437,34081.0,34078.0,0.24057544]
[1625524427196,4.57014437,34081.0,34075.0,1.00891008]
[1625524427643,0.01610148,34080.0,34075.0,1.00891008]
[1625524427744,6.24811952,34076.0,34075.0,1.00891008]
[1625524427852,9.1001046,34076.0,34072.0,0.946]
[1625524428043,2.2528105,34073.0,34072.0,0.946]
[1625524428143,2.6153905,34073.0,34072.0,0.946]
[1625524428748,2.63149255,34073.0,34072.0,0.946]
[1625524430005,4.01757264,34073.0,34072.0,0.946]
[1625524430102,4.07657264,34073.0,34072.0,0.946]
[1625524440825,4.00147059,34073.0,34072.0,0.946]
[1625524440926,4.06047059,34073.0,34072.0,0.946]
[1625524441027,4.00147059,34073.0,34072.0,0.946]
[1625524441129,2.6153905,34073.0,34072.0,0.946]
[1625524441679,2.6743905,34073.0,34072.0,0.946]
[1625524442079,2.69048687,34073.0,34072.0,0.946]
[1625524442381,4.07455579,34073.0,34072.0,0.946]
[1625524444484,4.01555579,34073.0,34072.0,0.946]
[1625524444939,2.63148687,34073.0,34072.0,0.946]
[1625524446541,2.57248687,34073.0,34072.0,0.946]
[1625524446741,2.63148687,34073.0,34072.0,0.946]
[1625524447350,2.69048687,34073.0,34072.0,0.946]
[1625524448552,2.63148687,34073.0,34072.0,0.946]
[1625524450008,2.69048687,34073.0,34072.0,0.946]
[1625524450109,2.63148687,34073.0,34072.0,0.946]
[1625524450208,3.3231962,34073.0,34072.0,0.946]
[1625524452013,3.80434708,34073.0,34072.0,0.946]
[1625524453219,3.74534708,34073.0,34072.0,0.946]
[1625524453919,2.5323086,34073.0,34072.0,0.946]
[1625524454820,2.5913086,34073.0,34072.0,0.946]
[1625524454921,2.5323086,34073.0,34072.0,0.946]
[1625524455621,3.74368422,34073.0,34072.0,0.946]
[1625524455724,3.80268422,34073.0,34072.0,0.946]
[1625524456172,3.80268422,34073.0,34072.0,0.94947784]
[1625524456926,8.42858422,34073.0,34072.0,0.94947784]
[1625524457224,8.42858422,34073.0,34072.0,0.946]
[1625524457327,8.48758422,34073.0,34072.0,0.946]
[1625524457535,9.87215655,34073.0,34072.0,0.946]
[1625524462284,9.9069374,34073.0,34072.0,0.946]
[1625524462585,9.87215655,34073.0,34072.0,0.946]
[1625524463085,9.90693783,34073.0,34072.0,0.946]
[1625524465742,9.87215655,34073.0,34072.0,0.946]
[1625524465992,9.90693798,34073.0,34072.0,0.946]
[1625524466803,9.87215655,34073.0,34072.0,0.946]
[1625524467052,9.90693798,34073.0,34072.0,0.946]
[1625524468106,9.87215655,34073.0,34072.0,0.946]
[1625524468657,9.90693809,34073.0,34072.0,0.946]
[1625524469211,10.40693809,34073.0,34068.0,0.67751712]
[1625524469315,11.96576948,34073.0,34066.0,0.6778974]
[1625524469411,0.03478562,34072.0,34066.0,0.6778974]
[1625524469510,0.05088457,34072.0,34066.0,0.6778974]
[1625524469611,0.10988457,34072.0,34066.0,0.6778974]
[1625524469711,0.5,34071.0,34066.0,0.6778974]
[1625524469812,0.5,34071.0,34065.0,1.0168461]
[1625524469813,4.33074384,34067.0,34063.0,0.67867194]
[1625524470011,4.44874384,34067.0,34063.0,0.67867194]
[1625524470111,0.48115088,34064.0,34063.0,0.67867194]
[1625524470211,1.31084088,34064.0,34063.0,0.67867194]
[1625524470313,1.31084088,34064.0,34063.0,0.61967194]
[1625524470413,1.36984088,34064.0,34063.0,0.61967194]
[1625524470512,1.42073716,34064.0,34063.0,0.61967194]
[1625524470762,5.75197579,34064.0,34059.0,1.01901669]
[1625524471012,0.03479297,34063.0,34059.0,1.01901669]
[1625524471112,0.10989491,34063.0,34059.0,1.01901669]
[1625524471212,4.7145,34060.0,34059.0,1.01901669]
[1625524471315,8.41274806,34060.0,34055.0,0.9113]
[1625524471414,8.47174806,34060.0,34055.0,0.9113]
[1625524471563,8.4878503,34060.0,34055.0,0.9113]
[1625524471664,8.9878503,34060.0,34055.0,0.9113]
[1625524471765,2.25121107,34056.0,34055.0,0.9113]
[1625524471865,2.54362107,34056.0,34055.0,0.9113]
[1625524472064,2.54362107,34056.0,34052.0,1.07652652]
[1625524472164,0.72172632,34053.0,34052.0,1.07652652]
[1625524472263,0.72172632,34053.0,34052.0,1.01952652]
[1625524472364,0.83972632,34053.0,34052.0,1.01952652]
[1625524472465,4.56052632,34053.0,34052.0,1.01952652]
[1625524473165,5.59981937,34053.0,34051.0,1.02010725]
[1625524473616,5.59981937,34053.0,34050.0,0.24057544]
[1625524473617,5.59981937,34053.0,34050.0,1.260324]
[1625524474771,5.59981937,34053.0,34050.0,0.24057544]
[1625524475318,5.59981937,34053.0,34050.0,1.26020175]
[1625524475872,5.59981937,34053.0,34050.0,0.24057544]
[1625524477429,4.56052632,34053.0,34050.0,0.24057544]
[1625524477626,4.56052632,34053.0,34050.0,0.29757544]
[1625524478931,0.51890128,34052.0,34050.0,0.80689866]
[1625524479132,0.57790128,34052.0,34050.0,0.80689866]
[1625524479232,0.57790128,34052.0,34050.0,0.74989866]
[1625524479434,0.57790128,34052.0,34050.0,0.24057544]
[1625524483143,0.57790128,34052.0,34050.0,0.35657544]
[1625524483343,0.51890128,34052.0,34050.0,0.35657544]
[1625524483645,0.72172632,34053.0,34051.0,0.50844616]
[1625524483747,0.72172632,34053.0,34051.0,0.56544616]
[1625524483946,0.72172632,34053.0,34051.0,0.62444616]
[1625524484145,0.72172632,34053.0,34051.0,0.56544616]
[1625524484245,0.72172632,34053.0,34052.0,0.50844743]
[1625524484550,0.72172632,34053.0,34051.0,0.56556516]
[1625524484747,0.72172632,34053.0,34051.0,0.62456516]
[1625524484850,0.72172632,34053.0,34051.0,0.56556516]
[1625524484948,0.72172632,34053.0,34052.0,0.50864605]
[1625524485698,0.78072632,34053.0,34052.0,0.50864605]
[1625524485800,0.78072632,34053.0,34051.0,0.057]
[1625524485899,0.78072632,34053.0,34050.0,0.74941404]
[1625524486149,0.78072632,34053.0,34050.0,0.24057544]
[1625524486150,1.2992279,34053.0,34050.0,0.24057544]
[1625524486954,0.51859448,34052.0,34050.0,0.24057544]
[1625524487055,0.57759448,34052.0,34050.0,0.24057544]
[1625524487655,0.51847482,34051.0,34050.0,0.24057544]
[1625524487757,0.57747482,34051.0,34050.0,0.24057544]
[1625524488208,0.059,34051.0,34050.0,0.24057544]
[1625524488507,0.51847497,34052.0,34050.0,0.24057544]
[1625524488609,0.57747497,34052.0,34050.0,0.24057544]
[1625524492114,0.059,34052.0,34050.0,0.24057544]
[1625524492513,0.57724595,34052.0,34050.0,0.24057544]
[1625524492813,0.059,34052.0,34050.0,0.24057544]
[1625524494216,0.57715879,34052.0,34050.0,0.24057544]
[1625524495721,0.059,34052.0,34050.0,0.24057544]
[1625524497424,0.01610373,34051.0,34050.0,0.24057544]
[1625524497625,0.07510373,34051.0,34050.0,0.24057544]
[1625524497725,0.01610373,34051.0,34050.0,0.24057544]
[1625524497976,0.07510373,34051.0,34050.0,0.24057544]
[1625524498980,0.01610373,34051.0,34050.0,0.24057544]
[1625524499228,0.01611466,34052.0,34050.0,0.24057544]
[1625524499329,0.07511466,34052.0,34050.0,0.24057544]
[1625524499532,0.07511466,34052.0,34051.0,0.00347956]
[1625524501535,0.07511466,34052.0,34050.0,0.00347959]
[1625524501834,0.07511466,34052.0,34051.0,0.00347961]
[1625524502084,0.059,34052.0,34051.0,0.00347961]
[1625524502337,0.07511364,34052.0,34050.0,0.00347958]
[1625524502634,0.07511364,34052.0,34051.0,0.00347963]
[1625524502887,0.07511364,34052.0,34050.0,0.00347968]
[1625524503138,0.01611396,34051.0,34050.0,0.00347968]
[1625524503238,0.07511396,34051.0,34050.0,0.00347968]
[1625524506547,0.07511396,34051.0,34049.0,0.00347964]
[1625524506798,0.07511396,34051.0,34049.0,0.06247964]
[1625524506948,0.07511396,34051.0,34050.0,0.00347964]
[1625524507148,0.059,34051.0,34050.0,0.00347964]
[1625524507398,0.07511385,34051.0,34050.0,0.00347964]
[1625524507598,0.01611385,34051.0,34049.0,0.00347959]
[1625524507798,0.01611385,34051.0,34049.0,0.06247959]
[1625524508199,0.01611385,34051.0,34050.0,0.00347955]
[1625524508449,0.01611347,34052.0,34050.0,0.00347955]
[1625524508651,0.01611347,34052.0,34049.0,0.00347957]
[1625524508950,0.01611347,34052.0,34051.0,0.0034796]
[1625524509050,0.36159093,34052.0,34051.0,0.0034796]
[1625524509251,0.36159093,34052.0,34050.0,0.06047957]
[1625524509555,0.36159093,34052.0,34051.0,0.00347955]
[1625524510256,0.01611347,34052.0,34051.0,0.00347955]
[1625524510960,0.36164221,34052.0,34051.0,0.00347955]
[1625524511159,0.36164221,34052.0,34050.0,0.00347947]
[1625524511358,0.0161133,34051.0,34050.0,0.34359966]
[1625524512159,0.36169132,34052.0,34050.0,0.34359966]
[1625524512410,0.34557808,34052.0,34051.0,0.00347947]
[1625524512961,0.36169119,34052.0,34051.0,0.00347947]
[1625524513063,0.01611311,34052.0,34051.0,0.00347947]
[1625524513915,0.01611311,34052.0,34051.0,0.34387046]
[1625524515317,0.01611311,34052.0,34051.0,0.85436489]
[1625524516269,0.36194368,34052.0,34051.0,0.85436489]
[1625524516569,0.01611311,34052.0,34051.0,0.85436489]
[1625524517079,0.01611311,34052.0,34051.0,0.5139739]
[1625524518325,0.01611311,34052.0,34051.0,1.53475961]
[1625524518526,0.01611311,34052.0,34051.0,1.77533505]
[1625524519029,0.28504311,34052.0,34051.0,0.75454934]
[1625524519482,0.80418971,34052.0,34051.0,0.75454934]
[1625524519929,0.80418971,34052.0,34051.0,1.09515882]
[1625524520689,0.63119831,34052.0,34051.0,1.7768909]
[1625524521331,1.15060781,34052.0,34051.0,1.7768909]
[1625524522132,1.15060781,34052.0,34051.0,1.8358909]
[1625524522236,0.63119831,34052.0,34051.0,1.8358909]
[1625524522337,0.36226831,34052.0,34051.0,1.8358909]
[1625524522740,0.01611311,34052.0,34051.0,3.02932932]
[1625524522935,1.34688437,34053.0,34051.0,3.02932932]
[1625524523153,0.86573349,34053.0,34051.0,3.08832932]
[1625524523238,0.86573349,34053.0,34052.0,0.00347869]
[1625524523345,0.34632515,34053.0,34052.0,2.79005107]
[1625524523461,1.03866708,34056.0,34052.0,2.84905107]
[1625524523636,0.24847243,34057.0,34052.0,2.84905107]
[1625524523741,0.24847243,34057.0,34053.0,0.00347851]
[1625524523852,0.24847243,34057.0,34053.0,0.06247851]
[1625524523937,0.24847243,34057.0,34053.0,0.12147851]
[1625524524036,1.03911647,34060.0,34055.0,2.38415373]
[1625524524136,1.38543091,34063.0,34055.0,2.50215373]
[1625524524236,1.38543091,34063.0,34056.0,0.00347822]
[1625524524336,1.38543091,34063.0,34062.0,4.3551]
[1625524524436,1.38525227,34068.0,34062.0,4.71626]
[1625524524538,1.38525227,34068.0,34067.0,0.72172632]
[1625524524636,1.38525227,34068.0,34067.0,0.78072632]
[1625524524838,0.01606415,34068.0,34067.0,0.78072632]
[1625524525339,1.40160473,34069.0,34067.0,0.78072632]
[1625524525589,0.01606373,34068.0,34067.0,0.78072632]
[1625524526138,1.38552509,34070.0,34067.0,0.78072632]
[1625524526793,1.38552509,34070.0,34067.0,0.72172632]
[1625524527242,0.01606378,34069.0,34067.0,0.72172632]
[1625524527445,1.40111111,34069.0,34067.0,0.72172632]
[1625524527543,1.46011111,34069.0,34067.0,0.72172632]
[1625524527747,0.24057544,34071.0,34067.0,0.72172632]
[1625524527748,1.40198972,34068.0,34067.0,0.72172632]
[1625524528244,1.38592514,34068.0,34067.0,0.72172632]
[1625524528543,1.38592514,34068.0,34067.0,0.48115088]
[1625524528642,1.44492514,34068.0,34067.0,0.48115088]
[1625524528742,1.46099055,34068.0,34067.0,0.48115088]
[1625524528843,1.54999055,34068.0,34067.0,0.48115088]
[1625524528944,1.46099055,34068.0,34067.0,0.48115088]
[1625524529044,3.01986077,34068.0,34067.0,0.48115088]
[1625524530549,3.01986077,34068.0,34067.0,0.24057544]
[1625524530848,3.71315714,34068.0,34067.0,0.24057544]
[1625524530998,3.71315714,34068.0,34063.0,0.057]
[1625524531099,5.1656,34065.0,34062.0,0.24057544]
[1625524531198,5.46144,34065.0,34062.0,0.29957544]
[1625524531698,2.07944009,34063.0,34062.0,0.29957544]
[1625524531799,2.13844009,34063.0,34062.0,0.29957544]
[1625524531949,2.07944009,34063.0,34062.0,0.24057544]
[1625524532105,0.69320445,34063.0,34062.0,0.24057544]
[1625524532201,0.69320445,34063.0,34062.0,0.29957544]
[1625524532301,0.69320445,34063.0,34062.0,0.24057544]
[1625524532552,1.17435533,34063.0,34062.0,0.24057544]
[1625524532653,1.17435533,34063.0,34062.0,0.92231391]
[1625524533006,1.17435533,34063.0,34062.0,0.24057544]
[1625524534117,1.23335533,34063.0,34062.0,0.29957544]
[1625524534466,1.17435533,34063.0,34062.0,0.29957544]
[1625524534668,1.17435533,34063.0,34062.0,0.35857544]
[1625524534768,1.17435533,34063.0,34062.0,1.04005711]
[1625524536173,0.48115088,34063.0,34062.0,1.04005711]
[1625524536270,0.48115088,34063.0,34062.0,0.98105711]
[1625524536522,1.17396686,34063.0,34062.0,0.98105711]
[1625524536821,0.48115088,34063.0,34062.0,0.98105711]
[1625524537026,0.48115088,34063.0,34062.0,1.04005711]
[1625524537321,0.69265304,34064.0,34062.0,0.79948167]
[1625524537521,0.69265304,34064.0,34062.0,0.74048167]
[1625524537721,0.69265304,34064.0,34063.0,0.68045488]
[1625524538623,0.93322848,34064.0,34063.0,0.92103032]
[1625524539977,0.93322848,34064.0,34063.0,0.98003032]
[1625524540078,0.69265304,34064.0,34063.0,0.73945488]
[1625524540629,0.93322848,34064.0,34063.0,0.98003032]
[1625524540879,0.93322848,34064.0,34063.0,0.92103032]
[1625524541081,0.24057544,34064.0,34063.0,0.92103032]
[1625524542036,0.93288033,34064.0,34063.0,0.92103032]
[1625524542438,0.93288033,34064.0,34063.0,0.24057544]
[1625524542886,0.93288033,34064.0,34063.0,0.41071851]
[1625524544090,0.93288033,34064.0,34063.0,0.46971851]
[1625524544588,0.93288033,34064.0,34063.0,0.97966514]
[1625524545389,0.93288033,34064.0,34063.0,1.03866514]
[1625524545989,0.93288033,34064.0,34063.0,0.97966514]
[1625524546594,0.93288033,34064.0,34063.0,1.03866514]
[1625524546744,0.93288033,34064.0,34063.0,0.97966514]
[1625524546842,0.93288033,34064.0,34063.0,1.03866514]
[1625524547794,0.93288033,34064.0,34063.0,0.97966514]
[1625524548596,4.31848033,34065.0,34063.0,0.97966514]
[1625524548696,0.24057544,34066.0,34063.0,1.03866514]
[1625524548797,1.21113874,34067.0,34063.0,1.03866514]
[1625524548897,1.21113874,34067.0,34066.0,0.48115088]
[1625524548998,1.21113874,34067.0,34066.0,0.81861088]
[1625524549099,1.21113874,34067.0,34066.0,0.87761088]
[1625524549296,1.3840513,34069.0,34066.0,0.8810882]
[1625524549498,1.3635513,34069.0,34066.0,0.8810882]
[1625524549697,0.8541513,34069.0,34066.0,0.8810882]
[1625524549801,0.17311301,34071.0,34069.0,0.059]
[1625524549900,1.21075344,34075.0,34069.0,0.059]
[1625524550001,1.21075344,34075.0,34069.0,0.118]
[1625524550217,1.21075344,34075.0,34070.0,0.00347695]
[1625524550302,1.21075344,34075.0,34070.0,0.06247695]
[1625524550402,3.45880143,34111.0,34070.0,0.12147695]
[1625524550403,1.55640223,34087.0,34070.0,0.12147695]
[1625524550500,1.55640223,34087.0,34071.0,0.057]
[1625524550601,1.55640223,34087.0,34071.0,0.175]
[1625524550701,1.55640223,34087.0,34071.0,0.17847649]
[1625524550904,1.55640223,34087.0,34084.0,0.48115088]
[1625524551004,0.24057544,34091.0,34084.0,0.54015088]
[1625524551103,0.24057544,34091.0,34084.0,0.78877088]
[1625524551203,0.24057544,34091.0,34084.0,0.84777088]
[1625524553662,0.24057544,34091.0,34084.0,0.78877088]
[1625524553859,0.29957544,34085.0,34084.0,0.54015088]
[1625524554410,1.33465431,34085.0,34084.0,0.54015088]
[1625524554510,1.27565431,34085.0,34084.0,0.54015088]
[1625524554611,1.27565431,34085.0,34084.0,0.80297088]
[1625524554709,1.27565431,34085.0,34084.0,0.86197088]
[1625524555261,0.24057544,34085.0,34084.0,0.86197088]
[1625524557118,1.0336588,34089.0,34084.0,0.80297088]
[1625524557418,1.03368741,34088.0,34084.0,0.80297088]
[1625524558172,1.03368741,34088.0,34084.0,0.86197088]
[1625524558775,1.03365901,34090.0,34084.0,0.86197088]